Cogmind - Beta 13 @@@ ROGUE MODE // 2024.04.05 @ 12:16:19 Player: SPACEGOAT Result: Destroyed by G-34 Mercenary with Small Laser Performance ------------- Evolutions (1) 500 Regions Visited (4) 800 Robots Destroyed (45) 225 Value Destroyed (999) 999 Prototype IDs (0) 0 Alien Tech Used (0) 0 Bonus (0) 0 TOTAL SCORE: 2524 Bonus ------- None Cogmind --------- Core Integrity 0/400 Matter 295/300 Energy 100/100 System Corruption 0% Temperature Cool (12) Movement Core (200) Ox3 Location -9/Storage Parts ------- > --- POWER (1) -------- (None) > --- PROPULSION (2) --- (None) > --- UTILITY (4) ------ Medium Storage Unit Terrain Scan Processor Targeting Computer > --- WEAPON (2) ------- (None) > --- INVENTORY (10) --- Improved Heat Sink High-capacity Battery (250) Structural Scanner Seismic Detector Datajack Peak State ------------ > --- POWER ------------ Light Nuclear Core > --- PROPULSION ------- Aluminum Leg Aluminum Leg > --- UTILITY ---------- Medium Storage Unit Improved Terrain Scanner Terrain Scan Processor Targeting Computer > --- WEAPON ----------- Beam Rifle Heavy Assault Rifle > --- INVENTORY -------- Improved Heat Sink High-capacity Battery Structural Scanner Seismic Detector Light Armor Plating Grenade Launcher Datajack Mining Laser [Rating: 17] Favorites ----------- Power Light Nuclear Core Engine Light Ion Engine Power Core Light Nuclear Core Propulsion Light Treads Treads Light Treads Leg Aluminum Leg Utility Medium Storage Unit Device Improved Terrain Scanner Storage Medium Storage Unit Processor Targeting Computer Protection Light Armor Plating Weapon Beam Rifle Energy Gun Beam Rifle Ballistic Gun Heavy Assault Rifle Launcher Grenade Launcher Special Weapon Mining Laser Build | -11 -10 -10 -9 -9 ------- Run | Yrd Mat Min Mat Sto Slots Evolved 2 | . . . 2 . Power . | . . . . . Propulsion . | . . . . . Utility 2 | . . . 2 . Weapon . | . . . . . Parts Attached 60 | 7 20 7 7 19 Power 6 | 1 2 . . 3 Engine 5 | 1 1 . . 3 Core 1 | . 1 . . . Reactor . | . . . . . Propulsion 8 | 2 . 2 . 4 Treads 3 | 2 . . . 1 Leg 5 | . . 2 . 3 Wheel . | . . . . . Hover . | . . . . . Flight . | . . . . . Utility 14 | 2 3 1 2 6 Device 7 | 1 2 . 1 3 Storage 2 | 1 1 . . . Processor 2 | . . 1 1 . Hackware . | . . . . . Protection 3 | . . . . 3 Artifact . | . . . . . Weapon 32 | 2 15 4 5 6 Energy Gun 3 | 1 1 1 . . Energy Cannon . | . . . . . Ballistic Gun 15 | 1 7 2 2 3 Ballistic Cannon . | . . . . . Launcher 3 | . 1 1 . 1 Special Weapon 11 | . 6 . 3 2 Impact Weapon . | . . . . . Slashing Weapon . | . . . . . Piercing Weapon . | . . . . . Special Melee Weapon . | . . . . . Unidentified Prototypes . | . . . . . Parts Lost 17 | . . 3 . 14 Power 3 | . . . . 3 Propulsion 5 | . . 1 . 4 Utility 3 | . . 1 . 2 Weapon 6 | . . 1 . 5 Highest Loss Streak 6 | . . 2 . 6 To Critical Strikes . | . . . . . Average Slot Usage (%) 96 | . 100 92 100 89 Engine 4 | . 6 . . 8 Core 7 | . 7 14 11 . Treads 12 | . 28 13 . 2 Leg 10 | . . 8 22 17 Device 10 | . 14 8 11 6 Storage 12 | . 14 14 11 11 Processor 11 | . . 4 22 22 Energy Gun 11 | . 14 14 11 7 Ballistic Gun 8 | . 8 13 4 9 Special Weapon 3 | . 5 . 6 . Naked Turns . | . . . . . Heaviest Build 26 | 12 21 22 22 26 Greatest Support 40 | 40 40 40 20 20 Greatest Overweight (x) 6 | 1 . 2 1 6 Average Overweight (x) . | . . . . . Largest Inventory Capacity 10 | 8 10 10 10 10 Average Capacity 9 | 7 9 10 10 10 Most Carried 10 | 8 10 10 8 10 Average Carried 8 | 3 9 9 7 8 Final Capacity 10 | 8 10 10 10 10 Final Carried 10 | 8 10 9 8 5 Class Distribution -------------------- 51% | Mutant 48% | Scavenger-Mutant Dominant Class ---------------- Mutant | -10/Materials Mutant | -10/Mines Scavenger-Mutant | -9/Materials Scavenger-Mutant | -9/Storage Resources | -11 -10 -10 -9 -9 ----------- Run | Yrd Mat Min Mat Sto Matter Collected 1062 | 286 259 150 17 350 Remotely . | . . . . . Salvage Created 1548 | 169 603 222 17 537 Parts 101 | 13 40 14 3 31 Haulers Intercepted 1 | . 1 . . . Recyclers Shooed 1 | . 1 . . . Parts Field Recycled . | . . . . . Retrieved Matter . | . . . . . Parts Self-Destructed . | . . . . . Prevented . | . . . . . Kills | -11 -10 -10 -9 -9 ------- Run | Yrd Mat Min Mat Sto Combat Hostiles Destroyed 26 | . 8 7 . 11 Guns 20 | . 5 4 . 11 AOE 6 | . 3 3 . . Classes Destroyed 11 | 2 5 2 . 2 Worker 4 | . 1 . . 3 Builder 5 | . 4 . 1 . Tunneler 4 | 4 . . . . Hauler 1 | . 1 . . . Recycler 3 | 1 1 . . 1 Mechanic 1 | . 1 . . . Operator 1 | . . . . 1 Swarmer 5 | . . 3 . 2 Grunt 15 | . 8 2 . 5 Brawler 1 | . . . . 1 Sentry 5 | . . 2 . 3 Best Kill Streak 5 | 2 4 5 1 5 Combat Bots Only 5 | . 3 5 . 3 Max Kills in Single Turn 3 | 1 3 2 1 1 Gunslinging . | . . . . . Exploded 2 | . 2 2 . . Melee . | . . . . . Uniques/NPCs Destroyed . | . . . . . Combat | -11 -10 -10 -9 -9 -------- Run | Yrd Mat Min Mat Sto Hostile Shots Fired 257 | . 58 40 . 159 Missed 65 | . 17 8 . 40 Damage Taken 2453 | . 532 403 . 1518 Core 641 | . 69 169 . 403 Absorbed by Shields . | . . . . . Core Remaining (%) 52 | 100 . 4 . . Volleys Fired 146 | 16 56 19 11 44 Largest 2 | 2 2 2 2 2 Hottest 156 | 60 100 79 156 100 Shots Fired 243 | 31 98 34 14 66 Gun 212 | 31 85 30 5 61 Cannon . | . . . . . Launcher 9 | . 2 4 . 3 Special 22 | . 11 . 9 2 Kinetic 115 | 16 43 15 2 39 Thermal 57 | . 11 10 12 24 Explosive 9 | . 2 4 . 3 Electromagnetic 62 | 15 42 5 . . Robot Hit Streak 19 | 13 9 8 5 19 Robot Miss Streak 6 | 2 6 3 . 2 Penetration Max . | . . . . . Secondary Targets 1 | . . 1 . . Max Gunslinging Chain 1 | . . 1 . . Shots Hit Robots 147 | 21 49 18 3 56 Core Hits 85 | 7 34 12 1 31 Critical Kills . | . . . . . Critical Parts Destroyed 1 | . 1 . . . Critical Strikes 3 | . 1 . . 2 Burn 2 | . . . . 2 Destroy 1 | . 1 . . . Melee Attacks . | . . . . . Impact . | . . . . . Slashing . | . . . . . Piercing . | . . . . . Sneak Attacks . | . . . . . Combat Hostiles . | . . . . . Follow-up Attacks . | . . . . . Damage Inflicted 2619 | 329 785 531 44 930 Guns 1861 | 245 543 215 44 814 Cannons . | . . . . . Explosions 748 | 84 242 316 . 106 Melee . | . . . . . Ramming 10 | . . . . 10 Kinetic 970 | 72 220 108 15 555 Thermal 437 | 84 21 44 29 259 Explosive 643 | . 221 316 . 106 Electromagnetic 559 | 173 323 63 . . Impact . | . . . . . Slashing . | . . . . . Piercing . | . . . . . Highest Corruption 1 | . 1 1 . . Average Corruption 1 | . 1 1 . . Corruption Purged . | . . . . . Corruption Blocked . | . . . . . Effects 7 | . 1 6 . . Message Errors 3 | . . 3 . . Matter Fused 1 | . . 1 . . Energy Discharges 1 | . 1 . . . Data Loss (minor) 1 | . . 1 . . Data Loss (major) 1 | . . 1 . . Overload Shots . | . . . . . Overflow Damage 49 | 1 2 39 . 7 Projectiles . | . . . . . Explosions 49 | 1 2 39 . 7 Melee . | . . . . . Knockbacks . | . . . . . Impact . | . . . . . Kinetic . | . . . . . Secondary . | . . . . . Self-Inflicted Damage 109 | . 4 . . 105 Shots 4 | . 1 . . 3 Rammed 1 | . . . . 1 Targets Rammed 3 | . . . . 3 Kicked 2 | . . . . 2 Crushed . | . . . . . Highest Temperature 291 | 40 163 291 50 209 Average Temperature 49 | 18 40 111 15 52 Received Heat Transfer 903 | . 345 132 . 426 Effects 1 | . . 1 . . Energy Bleed 1 | . . 1 . . Siege Activations . | . . . . . Robots Corrupted . | . . . . . Combat Hostiles . | . . . . . Parts Fried . | . . . . . Impact Corruptions . | . . . . . Robots Melted . | . . . . . Combat Hostiles . | . . . . . Parts Melted 1 | . . . . 1 Heat Transferred 1149 | 100 50 111 74 814 Parts Sabotaged . | . . . . . Parts Stolen . | . . . . . Parts Stripped . | . . . . . Power Chain Reactions 3 | 2 1 . . . Alert | -11 -10 -10 -9 -9 ------- Run | Yrd Mat Min Mat Sto Peak Influence 284 | 25 284 222 23 195 Initial 58 | . 16 58 8 . Average 82 | 10 121 122 12 97 Maximum Alert Level 1 | . 1 1 . . Low Security (%) 94 | 100 88 87 100 100 Level 1 5 | . 11 12 . . Level 2 . | . . . . . Level 3 . | . . . . . Level 4 . | . . . . . Level 5 . | . . . . . High Security . | . . . . . Max Security . | . . . . . Squads Dispatched 6 | . 1 . 2 3 Investigation 4 | . 1 . 1 2 Extermination . | . . . . . Reinforcement 2 | . . . 1 1 Assault . | . . . . . Garrison . | . . . . . Intercept . | . . . . . Searches Triggered . | . . . . . Construction Impeded . | . . . . . Haulers Reinforced . | . . . . . Active Scanning Responses . | . . . . . Cargo Convoy Interrupts . | . . . . . Stealth | -11 -10 -10 -9 -9 --------- Run | Yrd Mat Min Mat Sto Distress Signals 1 | . . . . 1 Communications Jammed . | . . . . . Distress Signals . | . . . . . Times Spotted 43 | . 15 7 3 18 Peak Tracking Total 8 | . 3 3 1 8 Tactical Retreats 2 | . 1 . . 1 Traps | -11 -10 -10 -9 -9 ------- Run | Yrd Mat Min Mat Sto Traps Triggered 4 | . 2 . . 2 Indirectly . | . . . . . Trap Hack Attempts . | . . . . . Triggered . | . . . . . Disarmed . | . . . . . Reprogrammed . | . . . . . Reused . | . . . . . Traps Extracted . | . . . . . Installed . | . . . . . Triggered . | . . . . . Machines | -11 -10 -10 -9 -9 ---------- Run | Yrd Mat Min Mat Sto Machines Disabled 2 | . 2 . . . Max in Single Turn 1 | . 1 . . . Machines Repaired . | . . . . . Machines Dismantled . | . . . . . Machines Sabotaged . | . . . . . Overloaded Fab Kills . | . . . . . Hacking | -11 -10 -10 -9 -9 --------- Run | Yrd Mat Min Mat Sto Machines Accessed 13 | . 9 . 2 2 Terminals 10 | . 8 . 1 1 Fabricators . | . . . . . Repair Stations 3 | . 1 . 1 1 Recycling Units . | . . . . . Scanalyzers . | . . . . . Garrison Access . | . . . . . Total Hacks 30 | . 21 . 6 3 Successful 10 | . 7 . 2 1 Failed 20 | . 14 . 4 2 Catastrophic 3 | . 3 . . . Database Lockouts . | . . . . . Manual 14 | . 9 . 2 3 Terminals 22 | . 18 . 2 2 Fabricators . | . . . . . Repair Stations 8 | . 3 . 4 1 Recycling Units . | . . . . . Scanalyzers . | . . . . . Garrison Access . | . . . . . Terminal Hacks 9 | . 7 . 1 1 Unreport Threat 1 | . 1 . . . Zone Layout 8 | . 6 . 1 1 Fabricator Hacks . | . . . . . Repair Station Hacks 1 | . . . 1 . Scan Component 1 | . . . 1 . Recycling Unit Hacks . | . . . . . Scanalyzer . | . . . . . Garrison Access Hacks . | . . . . . Unauthorized Hacks . | . . . . . Terminals . | . . . . . Fabricators . | . . . . . Repair Stations . | . . . . . Recycling Units . | . . . . . Scanalyzers . | . . . . . Garrison Access . | . . . . . Data Cores Recovered . | . . . . . Used . | . . . . . Hacking Detections 8 | . 4 . 2 2 Full Trace Events 3 | . 2 . 1 . Feedback Events . | . . . . . Feedback Blocked . | . . . . . Robot Schematics Acquired . | . . . . . Robots Built . | . . . . . Authchips . | . . . . . Time . | . . . . . Total Robot Build Rating . | . . . . . Part Schematics Acquired . | . . . . . Parts Built . | . . . . . Authchips . | . . . . . Time . | . . . . . Total Part Build Rating . | . . . . . Parts Repaired . | . . . . . Time . | . . . . . Parts Recycled . | . . . . . Recycled Matter . | . . . . . Retrieved Matter . | . . . . . Retrieved Components . | . . . . . Parts Scanalyzed . | . . . . . Part Schematics Acquired . | . . . . . Parts Damaged . | . . . . . Bothacking | -11 -10 -10 -9 -9 ------------ Run | Yrd Mat Min Mat Sto Used RIF Installer . | . . . . . Robots Hacked . | . . . . . Non-combat . | . . . . . Combat . | . . . . . Robot Hacks Applied . | . . . . . Relay Couplers Released . | . . . . . Fabnet Peak Effective % . | . . . . . Robots Rewired . | . . . . . Allies Hacked . | . . . . . Hacks Repelled . | . . . . . Allies | -11 -10 -10 -9 -9 -------- Run | Yrd Mat Min Mat Sto Total Allies . | . . . . . Largest Group . | . . . . . Highest-Rated Group . | . . . . . Highest-Rated Ally . | . . . . . Total Orders . | . . . . . Ally Attacks . | . . . . . Total Damage . | . . . . . Kills . | . . . . . Allies Corrupted . | . . . . . Allies Melted . | . . . . . Intel | -11 -10 -10 -9 -9 ------- Run | Yrd Mat Min Mat Sto Robot Analysis Total . | . . . . . Derelict Logs Recovered 1 | . . 1 . . Drone Launches . | . . . . . Drone Recoveries . | . . . . . Exploration | -11 -10 -10 -9 -9 ------------- Run | Yrd Mat Min Mat Sto Turns Passed 3447 | 179 1192 502 909 665 Spaces Moved 1194 | 74 608 222 116 174 Core 19 | 8 . . . 11 Treads 879 | 66 608 144 . 61 Legs 296 | . . 78 116 102 Wheels . | . . . . . Hover . | . . . . . Flight . | . . . . . Fastest Speed 50 | 50 160 160 120 120 Average Speed 167 | 151 160 195 139 181 Slowest Speed 350 | 160 160 260 190 350 Overloaded Moves . | . . . . . Propulsion Burnouts . | . . . . . Robots Hopped . | . . . . . Cave-ins Triggered . | . . . . . Exploration Rate (%) 40 | 6 91 56 12 35 Regions Visited 4 Branch Regions 2 Pre-discovered Areas 1 | . . 1 . . Known Exits Taken . | . . . . . Unknown Exits Taken 4 | 1 1 1 1 . Scrap Searched . | . . . . . Spaces Dug 21 | . 11 . 8 2 Terrain Destroyed 114 | 12 35 31 8 28 Melee . | . . . . . Projectile 21 | . 11 . 8 2 AOE 93 | 12 24 31 . 26 Terrain Rammed . | . . . . . Walls Destroyed . | . . . . . Machines Disabled . | . . . . . Actions | -11 -10 -10 -9 -9 --------- Run | Yrd Mat Min Mat Sto Total 2361 | 113 712 258 829 449 Wait 904 | 2 4 3 695 200 Move 1190 | 73 607 221 115 174 Hop . | . . . . . Pick Up 39 | 15 12 4 1 7 Fast Attach 4 | . 2 2 . . Attach 21 | 7 . 3 2 9 Detach . | . . . . . Swap 35 | . 18 2 5 10 Drop 19 | . 13 4 . 2 Fire 146 | 16 56 19 11 44 Melee . | . . . . . Ram . | . . . . . Kick 2 | . . . . 2 Crush 1 | . . . . 1 Escape Stasis . | . . . . . Rewire . | . . . . . Trap . | . . . . . Miscellaneous . | . . . . . Route ------- -11/Scrapyard -10/Materials (discovered 4 exits: *Mat x3 / [*Min]) -10/Mines -9/Materials -9/Storage (discovered 1 exit: [Rec]) History --------- Turn | Location | Event 2 | -11/Scrapyard | Met Revision 17 17 | -11/Scrapyard | Discovered new exit (range 15) 180 | -11/Scrapyard | Entered Materials 306 | -10/Materials | Build established: Mutant 531 | -10/Materials | Discovered new exit (range 9) 925 | -10/Materials | Discovered new exit (range 4) 1140 | -10/Materials | Discovered new exit (range 4) 1340 | -10/Materials | Discovered new exit (range 14) 1372 | -10/Materials | Entered Mines 1516 | -10/Mines | Core integrity fell below 50% 1631 | -10/Mines | A weapon hastily lodged in a ceiling crevice suddenly fell to the ground 1679 | -10/Mines | Discovered new exit (range 6) 1699 | -10/Mines | Core integrity fell below 20% 1804 | -10/Mines | Learned location of Zion (-7) 1874 | -10/Mines | Entered Materials 1874 | -9/Materials | Evolved 2 slots: Utility x2 2029 | -9/Materials | Build established: Scavenger-Mutant 2746 | -9/Materials | Discovered new exit (range 4) 2783 | -9/Materials | Entered Storage 3269 | -9/Storage | Core integrity fell below 50% 3296 | -9/Storage | Lost 6 parts (2n1u3w) 3397 | -9/Storage | Discovered new exit (range 14) 3443 | -9/Storage | Core integrity fell below 20% 3448 | -9/Storage | Destroyed by G-34 Mercenary with Small Laser Last Messages --------------- K-01 Serf collects debris. R-06 Scavenger collects Ion Engine. R-06 Scavenger destroyed. K-01 Serf collects debris. K-01 Serf destroyed. Acquired 28 matter. W-16 Scout sends out distress signal. S-10 Pest destroyed. Shotgun destroyed. Slammed into S-10 Pest. EXIT=FOUND Ion Engine destroyed. Triggered Alarm Trap. An alarm sounds. ALERT: Alarm triggered, dispatching investigation squad. Aluminum Leg destroyed. Lgt. Treads destroyed. Imp. Terrain Scanner destroyed. Mining Laser destroyed. Map ----- +----------------------------------------------------+ | ?????????## ### # ########## | | ????? ?#?# # # ############ | | ??????????# # ## ###?#??## | | ????? ?########### #+## ######### | | ????# ?#### ###?##### | | ????# ##""" ######### | | ????# ##"Y #####?###? | | ?#??# ?#""" """ """ ##?####?#?? | | ???## ##### """ """ #?##???#?" | | ???## ###?# """ """ ####?#??#?? | | ????# #?### =####?###??? | | ????# #??##+####/####+#########+# | | ??### #?## =*%= % % | | ?#### #### %=!%!***% | | ???## #### ##/#########/#####+## | | #???# #?#T ## # ?? | | ??### #### ## """" # """ """? | | #??## ## "" " # """ ??? | | #???# #### ## """ " # """ """? | | ?#?## #??# ## " """ + """ ""? | | #?####+##### ## "??"" # """ "?? | | ?# # ## """" # ?? ???? | | ?# """"" ## T# # ? ?? ? | | ## """""Y## ############# ????##? | | ## """""s#""""###?##?????####?#??? | | ?# Y g@# ???####?##?# ??##??? | | ?#! """""g##?< #??##?###???????#?? | | ?# """"" ## ??#?#?#?#???? ?#?#? | | ?# """"" ###?#?#??#######? ?????? | | #??? #??##?#?##?#????????#?? ? | | ?#?" "#####??#?#??#???????????????? | | ???"G"???######?##?#? ? ????? ?? | | ??????##??#??#????????? ? ?? ?????? | | ????????????????#??#? ? " ???????? | | ???##????????#????#??#????????????? | | ??????????????????????????????????? | | ??????????????????????????????????? | | ??????????????#??#????????????????? | | ?#?????????????????#??????????????? | | ??????????????????????????????????? | | | | | | | | | | | | | | | | | | | | | +----------------------------------------------------+ Best States ------------- Heat Dissipation 28 Energy Generation 14 Energy Capacity 265 Matter Stores 300 Matter Capacity 300 Sight Range 16 Terrain Scan Range 16 Terrain Scan Density 85 Armor Coverage 150 Evasion (%) 55 Targeting Accuracy 5 Recoil Reduction 2 Item Schematics ----------------- None Robot Schematics ------------------ None Fabricated ------------ Nothing Alien Tech Used ----------------- None Achievements -------------- None Challenges ------------ None Game ------ Seed VariableGunCoupler Manual? 0 Play Time 00:46:49 Cumulative 15.9 hours Start 2024.04.05 @ 11:25:31 End 2024.04.05 @ 12:16:19 Sessions 1 Manual Loads 0 Difficulty Rogue Special Mode None Game No. 11 Rogue 11 Adventurer 0 Explorer 0 Win Type - Total 0 Types 0/0/0/0/0/0/0/0/0 Lore% 13 Gallery% 20 Achievement% 14 Wizard Run 0 Options --------- Layout 1 ASCII 0 Keyboard 0 Movement Mouse Keybinds 0 Fullscreen 1 Font 24/Smallcaps Map View 50x35 Zoom Use 0% Tactical HUD 0 Map Filters NONE Filters NONE Steam 1 RUN: 73f2d743-e8dd-4cac-97b4-d7d0574f4d0f